Cogmind - Beta 15 @@@ ROGUE MODE // 2025.07.07 @ 23:16:13 Player: Skysub Result: Destroyed by Y-45 Defender with Heavy Assault Rifle Performance ------------- Evolutions (0) 0 Regions Visited (3) 600 Robots Destroyed (26) 130 Value Destroyed (506) 506 Prototype IDs (11) 220 Alien Tech Used (0) 0 Bonus (0) 0 TOTAL SCORE: 1456 Bonus ------- None Cogmind --------- Core Integrity 0/250 Matter 300/300 Energy 182/200 System Corruption 0% Temperature Cool (0) Movement Rolling (100) Location -8/Recycling Parts ------- > --- POWER (1) -------- Subdweller Power Source > --- PROPULSION (2) --- Compact Wheel Compact Wheel > --- UTILITY (2) ------ Large Storage Unit Improved Sensor Array > --- WEAPON (2) ------- Subdweller Laser Makeshift Spear > --- INVENTORY (15) --- Subdweller Power Source Subdweller Monowheel Small Storage Unit Hacking Suite System Shield Powered Cannon Plasma Cutter Katana Peak State ------------ > --- POWER ------------ Subdweller Power Source > --- PROPULSION ------- Compact Wheel Compact Wheel > --- UTILITY ---------- Large Storage Unit Improved Sensor Array > --- WEAPON ----------- Subdweller Laser Makeshift Spear > --- INVENTORY -------- Subdweller Power Source Subdweller Monowheel Small Storage Unit Hacking Suite System Shield Powered Cannon Plasma Cutter Katana [Rating: 17] Favorites ----------- Power Ion Engine Engine Ion Engine Propulsion Light Treads Treads Light Treads Wheel Compact Wheel Utility Small Storage Unit Device Structural Scanner Storage Small Storage Unit Weapon Autogun Energy Gun Subdweller Laser Ballistic Gun Autogun Special Weapon Mining Laser Piercing Weapon Makeshift Spear Build | -11 -10 -10 -8 ------- Run | Yrd Mat Sub Rec Slots Evolved . | . . . . Power . | . . . . Propulsion . | . . . . Utility . | . . . . Weapon . | . . . . Parts Attached 22 | 6 4 8 4 Power 2 | 1 . 1 . Engine 2 | 1 . 1 . Core . | . . . . Reactor . | . . . . Propulsion 5 | 2 . 1 2 Treads 2 | 2 . . . Leg . | . . . . Wheel 3 | . . 1 2 Hover . | . . . . Flight . | . . . . Utility 5 | 1 1 1 2 Device 3 | . 1 1 1 Storage 2 | 1 . . 1 Processor . | . . . . Hackware . | . . . . Protection . | . . . . Artifact . | . . . . Weapon 10 | 2 3 5 . Energy Gun 2 | 1 . 1 . Energy Cannon . | . . . . Ballistic Gun 6 | 1 3 2 . Ballistic Cannon . | . . . . Launcher . | . . . . Special Weapon 1 | . . 1 . Impact Weapon . | . . . . Slashing Weapon . | . . . . Piercing Weapon 1 | . . 1 . Special Melee Weapon . | . . . . Unidentified Prototypes . | . . . . Parts Lost 12 | . . 12 . Power 1 | . . 1 . Propulsion 2 | . . 2 . Utility 2 | . . 2 . Weapon 7 | . . 7 . Highest Loss Streak 6 | . . 6 . To Critical Strikes 1 | . . 1 . Average Backups 6 | 1 7 6 5 Power 1 | . 1 1 1 Propulsion 1 | . 2 1 . Utility . | . . . 1 Weapon 3 | . 3 4 1 Tool/Special . | . . . . Unused Backups 11 | . . 5 6 Power 2 | . . 1 1 Propulsion 4 | . . 4 . Utility 2 | . . . 2 Weapon 2 | . . . 2 Tool/Special 1 | . . . 1 Average Slot Usage (%) 80 | . 93 83 70 Engine 12 | . 14 10 14 Treads 13 | . 28 18 . Wheel 4 | . . 1 9 Device 7 | . 8 10 3 Storage 14 | . 14 14 14 Energy Gun 6 | . 3 1 14 Ballistic Gun 15 | . 24 23 . Piercing Weapon 5 | . . . 14 Peak Build Rating 17 | 6 10 12 17 Average Rating 10 | 5 8 9 12 On Entrance 7 | . 6 10 12 Naked Turns . | . . . . Heaviest Build 32 | 14 17 17 32 Greatest Support 40 | 40 40 40 32 Greatest Overweight (x) 5 | . . 3 5 Average Overweight (x) . | . . . 1 Largest Inventory Capacity 15 | 8 8 8 15 Average Capacity 8 | 6 8 8 9 Most Carried 9 | 3 8 8 9 Average Carried 6 | 1 7 7 6 Final Capacity 15 | 8 8 8 15 Final Carried 9 | 3 8 3 9 Class Distribution -------------------- 90% | Mutant 9% | Scavenger-Mutant Dominant Class ---------------- Mutant | -10/Materials Mutant | -10/Subcaves Mutant | -8/Recycling Resources | -11 -10 -10 -8 ----------- Run | Yrd Mat Sub Rec Matter Collected 905 | 212 199 368 126 Remotely . | . . . . Salvage Created 961 | 34 277 290 360 Parts 64 | 8 20 26 10 Haulers Intercepted . | . . . . Recyclers Shooed . | . . . . Parts Field Recycled . | . . . . Retrieved Matter . | . . . . Parts Self-Destructed 6 | . . 6 . Prevented . | . . . . Kills | -11 -10 -10 -8 ------- Run | Yrd Mat Sub Rec Combat Hostiles Destroyed 16 | . 4 12 . Guns 16 | . 4 12 . Classes Destroyed 7 | 1 4 2 . Worker 1 | . 1 . . Builder 1 | . 1 . . Tunneler 3 | 2 1 . . Recycler 5 | . 1 . 4 Swarmer 6 | . . 6 . Grunt 4 | . 4 . . Subdweller 6 | . . 6 . Best Kill Streak 5 | 2 2 5 4 Combat Bots Only 5 | . 2 5 . Max Kills in Single Turn 1 | 1 1 1 1 Gunslinging . | . . . . Exploded . | . . . . Melee . | . . . . Uniques/NPCs Destroyed . | . . . . Combat | -11 -10 -10 -8 -------- Run | Yrd Mat Sub Rec Hostile Shots Fired 127 | . 17 108 2 Missed 34 | . 4 29 1 Hits 93 | . 13 79 1 Projectile 93 | . 13 79 1 AOE 2 | . . 2 . Critical Strikes 1 | . . 1 . Damage Taken 1430 | . 169 1246 15 Core 256 | . 12 229 15 Absorbed by Shields . | . . . . Core Remaining (%) 100 | 100 . . . Volleys Fired 80 | 7 18 54 1 Largest 2 | 2 2 2 1 Hottest 100 | 70 73 100 60 Shots Fired 146 | 13 36 96 1 Gun 141 | 13 36 91 1 Cannon . | . . . . Launcher . | . . . . Special 5 | . . 5 . Kinetic 128 | 7 32 89 . Thermal 18 | 6 4 7 1 Explosive . | . . . . Electromagnetic . | . . . . Robot Hit Streak 21 | 3 7 21 1 Robot Miss Streak 3 | 3 2 3 . Penetration Max . | . . . . Secondary Targets 2 | . . 2 . Max Gunslinging Chain 1 | . . 1 . Shots Hit Robots 104 | 6 24 66 8 Core Hits 35 | 2 11 19 3 Critical Kills . | . . . . Critical Parts Destroyed . | . . . . Critical Strikes 2 | . . . 2 Impale 2 | . . . 2 Melee Attacks 25 | . . 12 13 Impact . | . . . . Slashing . | . . . . Piercing 25 | . . 12 13 Sneak Attacks 5 | . . . 5 Combat Hostiles . | . . . . Follow-up Attacks . | . . . . Damage Inflicted 1593 | 101 354 692 446 Guns 1150 | 100 335 692 23 Cannons . | . . . . Explosions . | . . . . Melee 423 | . . . 423 Ramming 20 | 1 19 . . Kinetic 1053 | 51 310 692 . Thermal 97 | 49 25 . 23 Explosive . | . . . . Electromagnetic . | . . . . Impact . | . . . . Slashing . | . . . . Piercing 423 | . . . 423 Highest Corruption . | . . . . Average Corruption . | . . . . Corruption Purged . | . . . . Corruption Blocked . | . . . . Overload Shots . | . . . . Overflow Damage 137 | . . . 137 Projectiles . | . . . . Explosions . | . . . . Melee 137 | . . . 137 Knockbacks . | . . . . Impact . | . . . . Kinetic . | . . . . Secondary . | . . . . Self-Inflicted Damage . | . . . . Shots . | . . . . Rammed 5 | 1 4 . . Targets Rammed 6 | 1 5 . . Kicked . | . . . . Crushed 1 | . 1 . . Highest Temperature 133 | 34 133 . . Average Temperature 26 | 17 30 . . Received Heat Transfer 435 | . 99 336 . Siege Activations . | . . . . Martial Activations . | . . . . Shielding Activations . | . . . . Robots Disrupted . | . . . . Combat Hostiles . | . . . . Robots Corrupted . | . . . . Combat Hostiles . | . . . . Parts Fried . | . . . . Impact Corruptions . | . . . . Robots Melted . | . . . . Combat Hostiles . | . . . . Parts Melted 2 | . . 2 . Heat Transferred 247 | 148 74 . 25 Parts Sabotaged . | . . . . Parts Stolen . | . . . . Parts Stripped . | . . . . Power Chain Reactions . | . . . . Alert | -11 -10 -10 -8 ------- Run | Yrd Mat Sub Rec Maximum Alert Level . | . . . . Low Security (%) 100 | 100 100 . 100 Level 1 . | . . . . Level 2 . | . . . . Level 3 . | . . . . Level 4 . | . . . . Level 5 . | . . . . High Security . | . . . . Max Security . | . . . . Peak Influence 112 | 10 55 . 112 Initial 82 | . . . 82 Average 24 | . 19 . 29 Influence Increases 646 | 10 136 295 205 Destroy 0b10 Robot/C 200 | . 80 120 . Destroy 0b10 Robot/NC 55 | 10 20 . 25 Destroy Leader 30 | . 20 10 . Successful Hack 9 | . . . 9 Select Force Hacks 150 | . . . 150 Destroy Structure 7 | . 1 . 6 Lose Combat Pursuer 195 | . 15 165 15 Influence Decreases 617 | 10 136 123 348 Entered New Map 90 | . . . 90 Time Decay 497 | 10 136 93 258 Lost Part 30 | . . 30 . Squads Dispatched 1 | . 1 . . Investigation . | . . . . Extermination . | . . . . Reinforcement 1 | . 1 . . Assault . | . . . . Garrison . | . . . . Intercept . | . . . . Searches Triggered . | . . . . Construction Impeded . | . . . . Haulers Reinforced . | . . . . Active Scanning Responses . | . . . . Cargo Convoy Interrupts . | . . . . Stealth | -11 -10 -10 -8 --------- Run | Yrd Mat Sub Rec Distress Signals . | . . . . Communications Jammed . | . . . . Distress Signals . | . . . . Times Spotted 30 | . 6 22 2 Peak Tracking Total 6 | . 3 6 1 Tactical Retreats 6 | . 1 4 1 Traps | -11 -10 -10 -8 ------- Run | Yrd Mat Sub Rec Traps Triggered . | . . . . Indirectly . | . . . . Trap Hack Attempts . | . . . . Triggered . | . . . . Disarmed . | . . . . Reprogrammed . | . . . . Reused . | . . . . Traps Extracted . | . . . . Installed . | . . . . Triggered . | . . . . Machines | -11 -10 -10 -8 ---------- Run | Yrd Mat Sub Rec Machines Disabled 1 | . . 1 . Max in Single Turn 1 | . . 1 . Machines Repaired . | . . . . Machines Dismantled . | . . . . Machines Sabotaged . | . . . . Overloaded Fab Kills . | . . . . Hacking | -11 -10 -10 -8 --------- Run | Yrd Mat Sub Rec Machines Accessed 11 | . 1 2 8 Terminals 2 | . . . 2 Fabricators . | . . . . Repair Stations . | . . . . Recycling Units 7 | . 1 . 6 Scanalyzers . | . . . . Garrison Access . | . . . . Total Hacks 30 | . 1 4 25 Successful 17 | . 1 4 12 Failed 13 | . . . 13 Catastrophic 1 | . . . 1 Database Lockouts . | . . . . Manual 13 | . . . 13 Terminals 7 | . . . 7 Fabricators . | . . . . Repair Stations . | . . . . Recycling Units 19 | . 1 . 18 Scanalyzers . | . . . . Garrison Access . | . . . . Terminal Hacks 4 | . . 4 . Record 3 | . . 3 . Proto ID Catalog 1 | . . 1 . Fabricator Hacks . | . . . . Repair Station Hacks . | . . . . Recycling Unit Hacks 6 | . 1 . 5 Report Inventory 5 | . 1 . 4 Retrieve Components 1 | . . . 1 Scanalyzer . | . . . . Garrison Access Hacks . | . . . . Unauthorized Hacks 7 | . . . 7 Terminals 2 | . . . 2 Botnet 1 | . . . 1 Skim 1 | . . . 1 Fabricators . | . . . . Repair Stations . | . . . . Recycling Units 5 | . . . 5 Tunnel 5 | . . . 5 Scanalyzers . | . . . . Garrison Access . | . . . . Data Cores Recovered . | . . . . Used . | . . . . Hacking Detections 6 | . 1 . 5 Full Trace Events 1 | . . . 1 Feedback Events . | . . . . Feedback Blocked . | . . . . Robot Schematics Acquired . | . . . . Robots Built . | . . . . Authchips . | . . . . Time . | . . . . Total Robot Build Rating . | . . . . Part Schematics Acquired . | . . . . Parts Built . | . . . . Authchips . | . . . . Time . | . . . . Total Part Build Rating . | . . . . Parts Repaired . | . . . . Time . | . . . . Parts Recycled . | . . . . Recycled Matter . | . . . . Retrieved Matter . | . . . . Retrieved Components 3 | . . . 3 Parts Scanalyzed . | . . . . Part Schematics Acquired . | . . . . Parts Damaged . | . . . . Bothacking | -11 -10 -10 -8 ------------ Run | Yrd Mat Sub Rec Used RIF Installer . | . . . . Robots Hacked . | . . . . Non-combat . | . . . . Combat . | . . . . Robot Hacks Applied . | . . . . Relay Couplers Released . | . . . . Fabnet Peak Effective % . | . . . . Robots Rewired . | . . . . Allies Hacked . | . . . . Hacks Repelled . | . . . . Allies | -11 -10 -10 -8 -------- Run | Yrd Mat Sub Rec Total Allies . | . . . . Largest Group . | . . . . Highest-Rated Group . | . . . . Highest-Rated Ally . | . . . . Total Orders . | . . . . Ally Attacks . | . . . . Total Damage . | . . . . Kills . | . . . . Allies Corrupted . | . . . . Allies Melted . | . . . . Intel | -11 -10 -10 -8 ------- Run | Yrd Mat Sub Rec Active Infowar (turns) 1367 | . 247 928 192 Optics 132 | . . 132 . Sensors 192 | . . . 192 Structural 1043 | . 247 796 . Robot Analysis Total . | . . . . Derelict Logs Recovered 2 | . . 2 . Drone Launches . | . . . . Drone Recoveries . | . . . . Exploration | -11 -10 -10 -8 ------------- Run | Yrd Mat Sub Rec Turns Passed 2729 | 111 424 1295 899 Spaces Moved 1445 | 50 224 696 475 Core 254 | 1 . 67 186 Treads 816 | 49 224 543 . Legs . | . . . . Wheels 375 | . . 86 289 Hover . | . . . . Flight . | . . . . Fastest Speed 50 | 50 160 110 100 Average Speed 165 | 157 160 157 179 Slowest Speed 300 | 160 160 200 300 Overloaded Moves . | . . . . Propulsion Burnouts . | . . . . Robots Hopped . | . . . . Potential Cave-ins . | . . . . Cave-ins Triggered . | . . . . Exploration Rate (%) 38 | 4 37 38 74 Regions Visited 3 Branch Regions 2 Pre-discovered Areas 7 | . . 2 5 Known Exits Taken 1 | . . 1 . Unknown Exits Taken 2 | 1 1 . . Scrap Searched 10 | . . 10 . Spaces Dug 12 | . . 6 6 Terrain Destroyed 12 | . . 6 6 Melee 12 | . . 6 6 Projectile . | . . . . AOE . | . . . . Terrain Rammed . | . . . . Walls Destroyed . | . . . . Machines Disabled . | . . . . Actions | -11 -10 -10 -8 --------- Run | Yrd Mat Sub Rec Total 1618 | 66 255 791 506 Wait 9 | . . 2 7 Move 1442 | 49 223 695 475 Hop . | . . . . Pick Up 19 | 3 3 8 5 Fast Attach 11 | 6 2 1 2 Attach 10 | . . 9 1 Detach 1 | . . . 1 Swap 9 | . 3 5 1 Drop 6 | . 1 5 . Fire 80 | 7 18 54 1 Melee 25 | . . 12 13 Ram . | . . . . Kick . | . . . . Crush 6 | 1 5 . . Escape Stasis . | . . . . Rewire . | . . . . Trap . | . . . . Miscellaneous . | . . . . Route ------- -11/Scrapyard -10/Materials (discovered 3 exits: [*Mat] / [*Min] / *Sub) -10/Subcaves (discovered 3 exits: [*Mat x2] / *Rec) -8/Recycling (discovered 1 exit: [*Fac]) History --------- Turn | Location | Event 11 | -11/Scrapyard | Discovered new exit (range 16) 112 | -11/Scrapyard | Entered Materials 112 | -10/Materials | Discovered new exit (range 14) 310 | -10/Materials | Build established: Mutant 401 | -10/Materials | Discovered new exit (range 16) 521 | -10/Materials | Discovered new exit (range 9) 536 | -10/Materials | Entered Subcaves 563 | -10/Subcaves | Learned location of Zion (-6) 563 | -10/Subcaves | Met a Zionite searching for "candidates" 671 | -10/Subcaves | Visited 4L-MR0's lab 699 | -10/Subcaves | Found Powered Cannon 771 | -10/Subcaves | Discovered new exit (range 16) 919 | -10/Subcaves | Visited Clippyterm 924 | -10/Subcaves | Identified exit to Recycling 1200 | -10/Subcaves | Shifting Twisted Machinery released Sub. Laser 1205 | -10/Subcaves | Shifting Twisted Machinery released Ripper 1214 | -10/Subcaves | Discovered new exit (range 10) 1308 | -10/Subcaves | Disturbed a concealed Subdweller 1308 | -10/Subcaves | Learned Materials stockpile data 1376 | -10/Subcaves | Lost 6 parts (1p1n1u3w) 1539 | -10/Subcaves | Core integrity fell below 50% 1569 | -10/Subcaves | Lost 4 parts (1n1u2w) 1687 | -10/Subcaves | Core integrity fell below 20% 1831 | -10/Subcaves | Entered Recycling 2372 | -8/Recycling | Discovered new exit (range 5) 2670 | -8/Recycling | Scanned before Scraplab entrance 2730 | -8/Recycling | Destroyed by Y-45 Defender with Heavy Assault Rifle Last Messages --------------- 02603_ Y-45 Defender springs to life. 02625_ Acquired Plasma Cutter. 02659_ Connecting with Recycling Unit... >>Recycling(Report) Matter reserves: 0 Inventory: Empty >>Force(Tunnel) DISCOVERED[-10/Mines] 02670_ LOCAL NARROWCAST: You may approach the wall. 02672_ The wall retracts into the floor. 4W-84Z(j): Strange, I checked the recommendation list not long ago and didn't see anyone like you on it. Who recommended you? Anyway, the system is always right, go on in. Not my problem as long as you don't touch anything in here. Just really don't mess with anything in there. Then it'll be my problem, and yours. 02674_ The floor rises up to form a wall. 02682_ The wall retracts into the floor. 02684_ The floor rises up to form a wall. 02728_ Y-45 Defender springs to life. Map ----- +----------------------------------------------------+ | " # #?####+####+##### ##???????????????? | | " # #?# # #???????????????? | | " # #?# " # < #????????????????? | | " # #?# T """ # #????????????????? | | # """ #?# " """ # #????????????????? | | " # """ #?# """ # #????????????????? | | " + """ #?# + ###??????????????? | | " # #?# # ""#??????????????? | | " # #?# # Y"#??????????????? | | # #?#####+##### ""#??????????????? | | " # ##### #?????# #???# ###??????????????? | | " # #???# #?????# ###?# #?######?????????? | | " # #???# #?????# ] #?# #?# #?????????? | | " # #####+#?????# ]#?# #?# #??###????? | | # # #?????# ]]#?# ### #### ##???? | | + # #?????# ###?# ? # #???? | | # # """ #?????# #???# ##### ##### #???? | | ###### # """ ####### #???# #??# #???# #???? | | ??# + """ + %% #???# Y##??# #???# #???? | | ###+#### """ # #######???# #???#"####???# #???? | | #??# """ # #????????## ##??###??????#+#???? | | "" #### # ########?# #?????????????????? | | "" ""## """ # # #?# #?????????????????? | | "" T"## """ # # #?# #?????????????????? | | ""## """ # # ### #?????????????????? | | " " #### """ # # ##;@ #?????????????????? | | "Y" #??# """ # # #########?????????????????? | | """ #??# + # #?????????????????????????? | | #??# # # #?????????????????????????? | | +#########+### # #?????????????????????????? | | # #?????????????????????????? | | + #?????????????????????????? | | # #?????????????????????????? | | +#########+##### #?????????????????????????? | | #??# #?# #?????????????????????????? | | % #??# #?# #?????????????????????????? | | #??# #?# #?????????????????????????? | | ] #??# #?# #?????????????????????????? | | #??# #?# #?????????????????????????? | | [ #??# #?# #?????????????????????????? | | #??# #?? #?????????????????????????? | | #??# #??##### #?????????????????????????? | | ######??# #???????##?????????????????????????? | | ????????# #??????????????????????????????????? | | ????????# #??????????????????????????????????? | | ????????# #??????????????????????????????????? | | ????????# #??????????????????????????????????? | | ?????????### #??????????????????????????????????? | | ????????????##??????????????????????????????????? | | ????????????????????????????????????????????????? | +----------------------------------------------------+ Best States ------------- Heat Dissipation 25 Energy Generation 15 Energy Capacity 250 Matter Stores 300 Matter Capacity 300 Sight Range 21 Robot Scan Range 15 Terrain Scan Density 10 Evasion (%) 40 Recoil Reduction 2 Item Schematics ----------------- None Robot Schematics ------------------ None Fabricated ------------ Nothing Repaired ---------- Nothing Alien Tech Used ----------------- None Achievements -------------- None Challenges ------------ None Game ------ Seed HeartRelayBarrier Manual? 0 Play Time 00:11:59 Cumulative 146.3 hours Start 2025.07.07 @ 23:04:20 End 2025.07.07 @ 23:16:13 Sessions 1 Manual Loads 0 Difficulty Rogue Special Mode None Game No. 161 Rogue 161 Adventurer 0 Explorer 0 Win Type - Total 3 Types 1/0/0/1/0/0/0/0/0/1 Lore% 64 Gallery% 60 Achievement% 53 Wizard Run 0 Options --------- Layout 1 ASCII 0 Keyboard 1 Movement Numpad Keybinds 0 Fullscreen 1 Font 32/SmallcapsGlow Map View 77x35 Zoom Use 0% Tactical HUD 1 Map Filters NONE Filters NONE Steam 1 RUN: 99dca881-43ee-4ce9-b694-8298957b94f1